fUST/lending_fUST_20250408
["ID","MTS","AMOUNT","RATE_DAILY","PERIOD"]
[357471834,1744078254957,-500.0,0.00023287,2]
[357471835,1744078254968,-500.0,0.00023287,2]
[357471836,1744078254979,-500.0,0.00023287,2]
[357471837,1744078254989,-1208.47,0.00023287,2]
[357471838,1744078254999,-554.86,0.00023287,2]
[357471839,1744078255009,-831.74,0.00023287,2]
[357471840,1744078255020,-500.0,0.00023287,2]
[357471841,1744078255030,-1054.4,0.00023287,2]
[357471842,1744078255040,-500.0,0.00023287,2]
[357471843,1744078255050,-951.68,0.00023287,2]
[357471844,1744078255059,-500.0,0.00023287,2]
[357471845,1744078255069,-507.97008993,0.00023287,2]
[357471846,1744078255079,-500.0,0.00023287,2]
[357471847,1744078255089,-512.33678944,0.00023287,2]
[357471848,1744078255099,-1393.1,0.00023287,2]
[357471849,1744078255114,-599.08557868,0.00023287,2]
[357471850,1744078255124,-500.0,0.00023287,2]
[357471851,1744078255134,-500.0,0.00023287,2]
[357471852,1744078255145,-526.21,0.00023287,2]
[357471853,1744078255155,-500.0,0.00023287,2]
[357471854,1744078255165,-500.0,0.00023287,2]
[357471855,1744078255175,-572.22,0.00023287,2]
[357471856,1744078255185,-500.0,0.00023287,2]
[357471857,1744078255195,-1780.71,0.00023287,2]
[357471858,1744078255204,-836.02,0.00023287,2]
[357471859,1744078255214,-1353.37,0.00023287,2]
[357471860,1744078255224,-500.0,0.00023287,2]
[357471861,1744078255234,-500.0,0.00023287,2]
[357471862,1744078255244,-500.0,0.00023287,2]
[357471863,1744078255254,-500.0,0.00023287,2]
[357471864,1744078255264,-500.0,0.00023287,2]
[357471865,1744078255273,-500.0,0.00023287,2]
[357471866,1744078255284,-500.0,0.00023287,2]
[357471867,1744078255296,-500.0,0.00023287,2]
[357471868,1744078255306,-1092.41,0.00023287,2]
[357471869,1744078255316,-500.0,0.00023287,2]
[357471870,1744078255327,-500.0,0.00023287,2]
[357471871,1744078255336,-1778.04,0.00023287,2]
[357471872,1744078255346,-694.6,0.00023287,2]
[357471873,1744078255359,-524.96,0.00023287,2]
[357471874,1744078255371,-1276.21,0.00023287,2]
[357471875,1744078255381,-534.14,0.00023287,2]
[357471876,1744078255391,-500.0,0.00023287,2]
[357471877,1744078255400,-500.0,0.00023287,2]
[357471878,1744078255410,-1340.54,0.00023287,2]
[357471879,1744078255419,-2859.43,0.00023287,2]
[357471880,1744078255429,-542.01,0.00023287,2]
[357471881,1744078255438,-500.0,0.00023287,2]
[357471882,1744078255448,-500.0,0.00023287,2]
[357471883,1744078255457,-500.0,0.00023287,2]
[357471884,1744078255468,-2076.71,0.00023287,2]
[357471885,1744078255478,-730.76,0.00023287,2]
[357471886,1744078255488,-500.0,0.00023287,2]
[357471887,1744078255498,-466.67446106,0.00023287,2]
[357471888,1744078255508,-500.0,0.00023287,2]
[357471889,1744078255518,-500.0,0.00023287,2]
[357471890,1744078255528,-500.0,0.00023287,2]
[357471891,1744078255538,-500.0,0.00023287,2]
[357471892,1744078255548,-500.0,0.00023287,2]
[357471893,1744078255558,-1162.69,0.00023287,2]
[357471894,1744078255568,-500.0,0.00023287,2]
[357471895,1744078255578,-500.0,0.00023287,2]
[357471896,1744078255588,-500.0,0.00023287,2]
[357471897,1744078255598,-500.0,0.00023287,2]
[357471898,1744078255610,-1701.69,0.00023287,2]
[357471899,1744078255620,-1335.7,0.00023287,2]
[357471900,1744078255630,-1873.27,0.00023287,2]
[357471901,1744078255639,-500.0,0.00023287,2]
[357471902,1744078255649,-500.0,0.00023287,2]
[357471903,1744078255659,-500.0,0.00023287,2]
[357471904,1744078255669,-5360.0,0.00023287,2]
[357471905,1744078255679,-601.69,0.00023287,2]
[357471906,1744078255688,-500.0,0.00023287,2]
[357471907,1744078255698,-771.06,0.00023287,2]
[357471908,1744078255708,-500.0,0.00023287,2]
[357471909,1744078255718,-500.0,0.00023287,2]
[357471910,1744078255729,-500.0,0.00023287,2]
[357471911,1744078255738,-500.0,0.00023287,2]
[357471912,1744078255748,-1134.35,0.00023287,2]
[357471913,1744078255758,-1513.16,0.00023287,2]
[357471914,1744078255768,-500.0,0.00023287,2]
[357471915,1744078255778,-1868.62,0.00023287,2]
[357471916,1744078255789,-1268.13,0.00023287,2]
[357471917,1744078255798,-500.0,0.00023287,2]
[357471918,1744078255808,-500.0,0.00023287,2]
[357471919,1744078255818,-727.74,0.00023287,2]
[357471920,1744078255827,-1073.11,0.00023287,2]
[357471921,1744078255837,-500.0,0.00023287,2]
[357471922,1744078255847,-1878.37,0.00023287,2]
[357471923,1744078255862,-500.0,0.00023287,2]
[357471924,1744078255873,-500.0,0.00023287,2]
[357471925,1744078255883,-1915.21,0.00023287,2]
[357471926,1744078255893,-2337.51,0.00023287,2]
[357471927,1744078255903,-561.08,0.00023287,2]
[357471928,1744078255914,-500.0,0.00023287,2]
[357471929,1744078255924,-590.76,0.00023287,2]
[357471930,1744078255934,-500.0,0.00023287,2]
[357471931,1744078255944,-500.0,0.00023287,2]
[357471932,1744078255954,-500.0,0.00023287,2]
[357471933,1744078255964,-1291.27,0.00023287,2]
[357471934,1744078255974,-500.0,0.00023287,2]
[357471935,1744078255983,-1180.34,0.00023287,2]
[357471936,1744078255993,-1165.83,0.00023287,2]
[357471937,1744078256003,-2979.5,0.00023287,2]
[357471938,1744078256012,-1531.45,0.00023287,2]
[357471939,1744078256022,-500.0,0.00023287,2]
[357471940,1744078256032,-500.0,0.00023287,2]
[357471941,1744078256041,-500.0,0.00023287,2]
[357471942,1744078256051,-1118.42,0.00023287,2]
[357471943,1744078256062,-1109.48,0.00023287,2]
[357471944,1744078256072,-500.0,0.00023287,2]
[357471945,1744078256082,-500.0,0.00023287,2]
[357471946,1744078256091,-500.0,0.00023287,2]
[357471947,1744078256103,-2935.5,0.00023287,2]
[357471948,1744078256112,-500.0,0.00023287,2]
[357471949,1744078256123,-500.0,0.00023287,2]
[357471950,1744078256132,-503.47069159,0.00023287,2]
[357471951,1744078256142,-1602.29,0.00023287,2]
[357471952,1744078256152,-500.0,0.00023287,2]
[357471953,1744078256162,-500.0,0.00023287,2]
[357471954,1744078256172,-602.81,0.00023287,2]
[357471955,1744078256182,-2426.96,0.00023287,2]
[357471956,1744078256192,-500.0,0.00023287,2]
[357471957,1744078256201,-720.44,0.00023287,2]
[357471958,1744078256211,-500.0,0.00023287,2]
[357471959,1744078256221,-853.03,0.00023287,2]
[357471960,1744078256231,-500.0,0.00023287,2]
[357471961,1744078256241,-500.0,0.00023287,2]
[357471962,1744078256251,-1619.33,0.00023287,2]
[357471963,1744078256261,-1136.31,0.00023287,2]
[357471964,1744078256271,-1240.57,0.00023287,2]
[357471965,1744078256282,-795.94,0.00023287,2]
[357471966,1744078256297,-500.0,0.00023287,2]
[357471967,1744078256306,-500.0,0.00023287,2]
[357471968,1744078256316,-2114.72,0.00023287,2]
[357471969,1744078256468,-1182.11,0.00023287,2]
[357471970,1744078256481,-500.0,0.00023287,2]
[357471971,1744078256492,-503.7,0.00023287,2]
[357471972,1744078256503,-500.0,0.00023287,2]
[357471973,1744078256513,-8763.46,0.00023287,2]
[357471974,1744078256524,-500.0,0.00023287,2]
[357471975,1744078256534,-500.0,0.00023287,2]
[357471976,1744078256544,-1130.38,0.00023287,2]
[357471977,1744078256555,-500.0,0.00023287,2]
[357471978,1744078256565,-500.0,0.00023287,2]
[357471979,1744078256575,-500.0,0.00023561,2]
[357471980,1744078256585,-500.0,0.00023561,2]
[357471981,1744078256596,-500.0,0.00023561,2]
[357471982,1744078256607,-331.93918513,0.00023561,2]
[357471983,1744078256617,-500.0,0.00023561,2]
[357471984,1744078256628,-500.0,0.00023561,2]
[357471985,1744078256639,-503.39729275,0.00023561,2]
[357471986,1744078256649,-500.0,0.00023561,2]
[357471987,1744078256659,-500.0,0.00023561,2]
[357471988,1744078256670,-500.0,0.00023561,2]
[357471989,1744078256681,-500.0,0.00023561,2]
[357471990,1744078256691,-500.0,0.00023561,2]
[357471991,1744078256702,-500.0,0.00023561,2]
[357471992,1744078256712,-523.03,0.00023561,2]
[357471993,1744078256723,-500.0,0.00023561,2]
[357471994,1744078256734,-568.94,0.00023561,2]
[357471995,1744078256744,-500.0,0.00023561,2]
[357471996,1744078256754,-500.0,0.00023561,2]
[357471997,1744078256764,-500.0,0.00023561,2]
[357471998,1744078256774,-251.89398279,0.00023561,2]
[357471999,1744078256785,-168.23216722,0.00023561,2]
[357472000,1744078256795,-573.47850502,0.00023561,2]
[357472001,1744078256805,-528.24011418,0.00023561,2]
[357472002,1744078256815,-500.0,0.00023561,2]
[357472003,1744078256825,-500.0,0.00023561,2]
[357472004,1744078256836,-500.0,0.00023561,2]
[357472005,1744078256846,-500.0,0.00023561,2]
[357472006,1744078256858,-500.0,0.00023561,2]
[357472007,1744078256868,-500.0,0.00023561,2]
[357472008,1744078256878,-500.0,0.00023561,2]
[357472009,1744078256887,-500.0,0.00023561,2]
[357472010,1744078256897,-152.04184998,0.00023561,2]
[357472011,1744078256907,-500.0,0.00023561,2]
[357472012,1744078256917,-500.0,0.00023561,2]
[357472013,1744078256926,-500.0,0.00023561,2]
[357472014,1744078256936,-500.0,0.00023561,2]
[357472015,1744078256945,-500.0,0.00023561,2]
[357472016,1744078256955,-500.0,0.00023561,2]
[357472017,1744078256964,-655.89,0.00023561,2]
[357472018,1744078256974,-500.0,0.00023561,2]
[357472019,1744078256984,-617.55,0.00023561,2]
[357472020,1744078256993,-500.0,0.00023561,2]
[357472021,1744078257003,-500.0,0.00023561,2]
[357472022,1744078257012,-500.0,0.00023561,2]
[357472023,1744078257022,-500.0,0.00023561,2]
[357472024,1744078257032,-500.0,0.00023561,2]
[357472025,1744078257041,-741.86,0.00023561,2]
[357472026,1744078257051,-500.0,0.00023561,2]
[357472027,1744078257061,-647.06,0.00023561,2]
[357472028,1744078257070,-500.0,0.00023561,2]
[357472029,1744078257080,-500.0,0.00023561,2]
[357472030,1744078257090,-500.11,0.00023561,2]
[357472031,1744078257099,-500.0,0.00023561,2]
[357472032,1744078257112,-500.0,0.00023561,2]
[357472033,1744078257122,-527.31,0.00023561,2]
[357472034,1744078257132,-500.0,0.00023561,2]
[357472035,1744078257142,-500.0,0.00023561,2]
[357472036,1744078257152,-500.0,0.00023561,2]
[357472037,1744078257162,-500.0,0.00023561,2]
[357472038,1744078257172,-500.0,0.00023561,2]
[357472039,1744078257182,-500.0,0.00023561,2]
[357472040,1744078257192,-777.63,0.00023561,2]
[357472041,1744078257201,-1500.08,0.00023561,2]
[357472042,1744078257211,-500.0,0.00023561,2]
[357472043,1744078257221,-500.0,0.00023561,2]
[357472044,1744078257230,-500.0,0.00023561,2]
[357472045,1744078257240,-500.0,0.00023561,2]
[357472046,1744078257250,-287.45188397,0.00023561,2]
[357472047,1744078257260,-500.0,0.00023561,2]
[357472048,1744078257270,-500.0,0.00023561,2]
[357472049,1744078257280,-1208.47,0.00023561,2]
[357472050,1744078257294,-554.86,0.00023561,2]
[357472051,1744078257304,-831.74,0.00023561,2]
[357472052,1744078257313,-500.0,0.00023561,2]
[357472053,1744078257323,-1054.4,0.00023561,2]
[357472054,1744078257333,-500.0,0.00023561,2]
[357472055,1744078257344,-951.68,0.00023561,2]
[357472056,1744078257354,-500.0,0.00023561,2]
[357472057,1744078257363,-500.0,0.00023561,2]
[357472058,1744078257376,-1393.1,0.00023561,2]
[357472059,1744078257386,-500.0,0.00023561,2]
[357472060,1744078257396,-500.0,0.00023561,2]
[357472061,1744078257405,-526.21,0.00023561,2]
[357472062,1744078257415,-500.0,0.00023561,2]
[357472063,1744078257424,-158.59495579,0.00023561,2]
[357472064,1744078257434,-572.22,0.00023561,2]
[357472065,1744078257444,-500.0,0.00023561,2]
[357472066,1744078257454,-1780.71,0.00023561,2]
[357472067,1744078257464,-836.02,0.00023561,2]
[357472068,1744078257474,-1353.37,0.00023561,2]
[357472069,1744078257484,-500.0,0.00023561,2]
[357472070,1744078257494,-500.0,0.00023561,2]
[357472071,1744078257504,-500.0,0.00023561,2]
[357472072,1744078257514,-500.0,0.00023561,2]
[357472073,1744078257524,-500.0,0.00023561,2]
[357472074,1744078257535,-500.0,0.00023561,2]
[357472075,1744078257545,-500.0,0.00023561,2]
[357472076,1744078257555,-500.0,0.00023561,2]
[357472077,1744078257565,-1092.41,0.00023561,2]
[357472078,1744078257575,-500.0,0.00023561,2]
[357472079,1744078257585,-500.0,0.00023561,2]
[357472080,1744078257595,-1778.04,0.00023561,2]
[357472081,1744078257607,-694.6,0.00023561,2]
[357472082,1744078257617,-524.96,0.00023561,2]
[357472083,1744078257627,-1276.21,0.00023561,2]
[357472084,1744078257638,-534.14,0.00023561,2]
[357472085,1744078257648,-500.0,0.00023561,2]
[357472086,1744078257658,-500.0,0.00023561,2]
[357472087,1744078257669,-1340.54,0.00023561,2]
[357472088,1744078257679,-2859.43,0.00023561,2]
[357472089,1744078257689,-542.01,0.00023561,2]
[357472090,1744078257699,-500.0,0.00023561,2]
[357472091,1744078257709,-500.0,0.00023561,2]
[357472092,1744078257719,-2076.71,0.00023561,2]
[357472093,1744078257729,-730.76,0.00023561,2]
[357472094,1744078257739,-500.0,0.00023561,2]
[357472095,1744078257749,-500.0,0.00023561,2]
[357472096,1744078257759,-511.82705808,0.00023561,2]
[357472097,1744078257769,-473.14925142,0.00023561,2]
[357472098,1744078257780,-500.0,0.00023561,2]
[357472099,1744078257790,-500.0,0.00023561,2]
[357472100,1744078257800,-1162.69,0.00023561,2]
[357472101,1744078257810,-500.0,0.00023561,2]
[357472102,1744078257819,-500.0,0.00023561,2]
[357472103,1744078257829,-500.0,0.00023561,2]
[357472104,1744078257839,-500.0,0.00023561,2]
[357472105,1744078257848,-500.0,0.00023561,2]
[357472106,1744078257861,-1701.69,0.00023561,2]
[357472107,1744078257872,-1335.7,0.00023561,2]
[357472108,1744078257882,-1873.27,0.00023561,2]
[357472109,1744078257892,-500.0,0.00023561,2]
[357472110,1744078257902,-500.0,0.00023561,2]
[357472111,1744078257912,-500.0,0.00023561,2]
[357472112,1744078257922,-5360.0,0.00023561,2]
[357472113,1744078257932,-601.69,0.00023561,2]
[357472114,1744078257941,-378.85477467,0.00023561,2]
[357472115,1744078257951,-771.06,0.00023561,2]
[357472116,1744078257961,-500.0,0.00023561,2]
[357472117,1744078257971,-500.0,0.00023561,2]
[357472118,1744078257981,-500.0,0.00023561,2]
[357472119,1744078257990,-500.0,0.00023561,2]
[357472120,1744078257999,-1134.35,0.00023561,2]
[357472121,1744078258009,-1513.16,0.00023561,2]
[357472122,1744078258019,-500.0,0.00023561,2]
[357472123,1744078258029,-1868.62,0.00023561,2]
[357472124,1744078258039,-1268.13,0.00023561,2]
[357472125,1744078258048,-500.0,0.00023561,2]
[357472126,1744078258059,-500.0,0.00023561,2]
[357472127,1744078258068,-727.74,0.00023561,2]
[357472128,1744078258078,-1073.11,0.00023561,2]
[357472129,1744078258088,-500.0,0.00023561,2]
[357472130,1744078258097,-1878.37,0.00023561,2]
[357472131,1744078258109,-500.0,0.00023561,2]
[357472132,1744078258119,-500.0,0.00023561,2]
[357472133,1744078258129,-1915.21,0.00023561,2]
[357472134,1744078258139,-2337.51,0.00023561,2]
[357472135,1744078258148,-561.08,0.00023561,2]
[357472136,1744078258158,-500.0,0.00023561,2]
[357472137,1744078258167,-590.76,0.00023561,2]
[357472138,1744078258177,-500.0,0.00023561,2]
[357472139,1744078258187,-500.0,0.00023561,2]
[357472140,1744078258198,-500.0,0.00023561,2]
[357472141,1744078258208,-1291.27,0.00023561,2]
[357472142,1744078258218,-500.0,0.00023561,2]
[357472143,1744078258228,-1180.34,0.00023561,2]
[357472144,1744078258238,-1165.83,0.00023561,2]
[357472145,1744078258247,-2979.5,0.00023561,2]
[357472146,1744078258257,-1531.45,0.00023561,2]
[357472147,1744078258267,-500.0,0.00023561,2]
[357472148,1744078258277,-500.0,0.00023561,2]
[357472149,1744078258287,-500.0,0.00023561,2]
[357472150,1744078258299,-1118.42,0.00023561,2]
[357472151,1744078258309,-1109.48,0.00023561,2]
[357472152,1744078258319,-500.0,0.00023561,2]
[357472153,1744078258329,-500.0,0.00023561,2]
[357472154,1744078258339,-500.0,0.00023561,2]
[357472155,1744078258349,-2935.5,0.00023561,2]
[357472156,1744078258360,-500.0,0.00023561,2]
[357472157,1744078258370,-500.0,0.00023561,2]
[357472158,1744078258380,-1602.29,0.00023561,2]
[357472159,1744078258390,-500.0,0.00023561,2]
[357472160,1744078258399,-500.0,0.00023561,2]
[357472161,1744078258410,-602.81,0.00023561,2]
[357472162,1744078258419,-2426.96,0.00023561,2]
[357472163,1744078258429,-500.0,0.00023561,2]
[357472164,1744078258439,-720.44,0.00023561,2]
[357472165,1744078258449,-500.0,0.00023561,2]
[357472166,1744078258460,-853.03,0.00023561,2]
[357472167,1744078258470,-500.0,0.00023561,2]
[357472168,1744078258480,-500.0,0.00023561,2]
[357472169,1744078258490,-1619.33,0.00023561,2]
[357472170,1744078258500,-1136.31,0.00023561,2]
[357472171,1744078258510,-1240.57,0.00023561,2]
[357472172,1744078258519,-795.94,0.00023561,2]
[357472173,1744078258529,-500.0,0.00023561,2]
[357472174,1744078258538,-500.0,0.00023561,2]
[357472175,1744078258548,-2114.72,0.00023561,2]
[357472176,1744078258557,-1182.11,0.00023561,2]
[357472177,1744078258567,-500.0,0.00023561,2]
[357472178,1744078258576,-503.7,0.00023561,2]
[357472179,1744078258586,-500.0,0.00023561,2]
[357472180,1744078258596,-8763.46,0.00023561,2]
[357472181,1744078258606,-500.0,0.00023561,2]
[357472182,1744078258616,-500.0,0.00023561,2]
[357472183,1744078258626,-1130.38,0.00023561,2]
[357472184,1744078258635,-500.0,0.00023561,2]
[357472185,1744078258645,-500.0,0.00023561,2]
[357472186,1744078258655,-500.0,0.00023835,2]
[357472187,1744078258665,-500.0,0.00023835,2]
[357472188,1744078258675,-500.0,0.00023835,2]
[357472189,1744078258684,-363.66530971,0.00023835,2]
[357472190,1744078258694,-500.0,0.00023835,2]
[357472191,1744078258703,-500.0,0.00023835,2]
[357472192,1744078258714,-500.0,0.00023835,2]
[357472193,1744078258724,-156.80660021,0.00023835,2]
[357472194,1744078258734,-512.91102725,0.00023835,2]
[357472195,1744078258745,-500.0,0.00023835,2]
[357472196,1744078258755,-523.03,0.00023835,2]
[357472197,1744078258765,-500.0,0.00023835,2]
[357472198,1744078258775,-568.94,0.00023835,2]
[357472199,1744078258784,-500.0,0.00023835,2]
[357472200,1744078258794,-500.0,0.00023835,2]
[357472201,1744078258804,-500.0,0.00023835,2]
[357472202,1744078258814,-500.0,0.00023835,2]
[357472203,1744078258823,-374.90395261,0.00023835,2]
[357472204,1744078258834,-500.0,0.00023835,2]
[357472205,1744078258844,-500.0,0.00023835,2]
[357472206,1744078258854,-500.0,0.00023835,2]
[357472207,1744078258867,-500.0,0.00023835,2]
[357472208,1744078258876,-500.0,0.00023835,2]
[357472209,1744078258886,-500.0,0.00023835,2]
[357472210,1744078258895,-500.0,0.00023835,2]
[357472211,1744078258905,-500.0,0.00023835,2]
[357472212,1744078258915,-500.0,0.00023835,2]
[357472213,1744078258925,-500.0,0.00023835,2]
[357472214,1744078258934,-260.21501903,0.00023835,2]
[357472215,1744078258943,-500.0,0.00023835,2]
[357472216,1744078258953,-655.89,0.00023835,2]
[357472217,1744078258962,-500.0,0.00023835,2]
[357472218,1744078258972,-617.55,0.00023835,2]
[357472219,1744078258981,-500.0,0.00023835,2]
[357472220,1744078258991,-500.0,0.00023835,2]
[357472221,1744078259000,-500.0,0.00023835,2]
[357472222,1744078259009,-296.45367776,0.00023835,2]
[357472223,1744078259019,-500.0,0.00023835,2]
[357472224,1744078259028,-741.86,0.00023835,2]
[357472225,1744078259038,-500.0,0.00023835,2]
[357472226,1744078259047,-647.06,0.00023835,2]
[357472227,1744078259056,-500.0,0.00023835,2]
[357472228,1744078259066,-500.0,0.00023835,2]
[357472229,1744078259075,-500.11,0.00023835,2]
[357472230,1744078259085,-500.0,0.00023835,2]
[357472231,1744078259094,-500.0,0.00023835,2]
[357472232,1744078259104,-527.31,0.00023835,2]
[357472233,1744078259115,-500.0,0.00023835,2]
[357472234,1744078259124,-500.0,0.00023835,2]
[357472235,1744078259134,-500.0,0.00023835,2]
[357472236,1744078259143,-500.0,0.00023835,2]
[357472237,1744078259152,-500.0,0.00023835,2]
[357472238,1744078259162,-500.0,0.00023835,2]
[357472239,1744078259172,-777.63,0.00023835,2]
[357472240,1744078259323,-1500.08,0.00023835,2]
[357472241,1744078259335,-500.0,0.00023835,2]
[357472242,1744078259345,-500.0,0.00023835,2]
[357472243,1744078259355,-310.50306711,0.00023835,2]
[357472244,1744078259367,-500.0,0.00023835,2]
[357472245,1744078259377,-500.0,0.00023835,2]
[357472246,1744078259387,-500.0,0.00023835,2]
[357472247,1744078259397,-1208.47,0.00023835,2]
[357472248,1744078259407,-554.86,0.00023835,2]
[357472249,1744078259417,-831.74,0.00023835,2]
[357472250,1744078259426,-500.0,0.00023835,2]
[357472251,1744078259436,-1054.4,0.00023835,2]
[357472252,1744078259445,-500.0,0.00023835,2]
[357472253,1744078259455,-951.68,0.00023835,2]
[357472254,1744078259465,-500.0,0.00023835,2]
[357472255,1744078259476,-500.0,0.00023835,2]
[357472256,1744078259486,-1393.1,0.00023835,2]
[357472257,1744078259497,-500.0,0.00023835,2]
[357472258,1744078259507,-500.0,0.00023835,2]
[357472259,1744078259517,-526.21,0.00023835,2]
[357472260,1744078259527,-500.0,0.00023835,2]
[357472261,1744078259537,-572.22,0.00023835,2]
[357472262,1744078259547,-500.0,0.00023835,2]
[357472263,1744078259558,-1780.71,0.00023835,2]
[357472264,1744078259568,-836.02,0.00023835,2]
[357472265,1744078259578,-1353.37,0.00023835,2]
[357472266,1744078259588,-500.0,0.00023835,2]
[357472267,1744078259598,-500.0,0.00023835,2]
[357472268,1744078259609,-500.0,0.00023835,2]
[357472269,1744078259619,-500.0,0.00023835,2]
[357472270,1744078259629,-500.0,0.00023835,2]
[357472271,1744078259639,-500.0,0.00023835,2]
[357472272,1744078259649,-500.0,0.00023835,2]
[357472273,1744078259659,-500.0,0.00023835,2]
[357472274,1744078259668,-1092.41,0.00023835,2]
[357472275,1744078259679,-500.0,0.00023835,2]
[357472276,1744078259688,-500.0,0.00023835,2]
[357472277,1744078259699,-1778.04,0.00023835,2]
[357472278,1744078259709,-694.6,0.00023835,2]
[357472279,1744078259718,-524.96,0.00023835,2]
[357472280,1744078259728,-1276.21,0.00023835,2]
[357472281,1744078259738,-534.14,0.00023835,2]
[357472282,1744078259748,-500.0,0.00023835,2]
[357472283,1744078259757,-500.0,0.00023835,2]
[357472284,1744078259767,-1340.54,0.00023835,2]
[357472285,1744078259776,-2859.43,0.00023835,2]
[357472286,1744078259786,-542.01,0.00023835,2]
[357472287,1744078259796,-500.0,0.00023835,2]
[357472288,1744078259806,-500.0,0.00023835,2]
[357472289,1744078259816,-2076.71,0.00023835,2]
[357472290,1744078259826,-500.0,0.00023835,2]
[357472291,1744078259836,-730.76,0.00023835,2]
[357472292,1744078259846,-500.0,0.00023835,2]
[357472293,1744078259857,-500.0,0.00023835,2]
[357472294,1744078259870,-500.0,0.00023835,2]
[357472295,1744078259880,-1162.69,0.00023835,2]
[357472296,1744078259891,-500.0,0.00023835,2]
[357472297,1744078259901,-500.0,0.00023835,2]
[357472298,1744078259911,-500.0,0.00023835,2]
[357472299,1744078259921,-500.0,0.00023835,2]
[357472300,1744078259931,-500.0,0.00023835,2]
[357472301,1744078259941,-1701.69,0.00023835,2]
[357472302,1744078259952,-1335.7,0.00023835,2]
[357472303,1744078259962,-1873.27,0.00023835,2]
[357472304,1744078259972,-500.0,0.00023835,2]
[357472305,1744078259982,-500.0,0.00023835,2]
[357472306,1744078259993,-500.0,0.00023835,2]
[357472307,1744078260003,-601.69,0.00023835,2]
[357472308,1744078260012,-5360.0,0.00023835,2]
[357472309,1744078260023,-771.06,0.00023835,2]
[357472310,1744078260033,-500.0,0.00023835,2]
[357472311,1744078260043,-500.0,0.00023835,2]
[357472312,1744078260053,-500.0,0.00023835,2]
[357472313,1744078260064,-500.0,0.00023835,2]
[357472314,1744078260074,-1134.35,0.00023835,2]
[357472315,1744078260086,-1513.16,0.00023835,2]
[357472316,1744078260096,-500.0,0.00023835,2]
[357472317,1744078260107,-1868.62,0.00023835,2]
[357472318,1744078260118,-1268.13,0.00023835,2]
[357472319,1744078260128,-500.0,0.00023835,2]
[357472320,1744078260138,-500.0,0.00023835,2]
[357472321,1744078260148,-727.74,0.00023835,2]
[357472322,1744078260158,-1073.11,0.00023835,2]
[357472323,1744078260168,-500.0,0.00023835,2]
[357472324,1744078260178,-1878.37,0.00023835,2]
[357472325,1744078260188,-500.0,0.00023835,2]
[357472326,1744078260198,-500.0,0.00023835,2]
[357472327,1744078260209,-1915.21,0.00023835,2]
[357472328,1744078260218,-2337.51,0.00023835,2]
[357472329,1744078260229,-561.08,0.00023835,2]
[357472330,1744078260238,-500.0,0.00023835,2]
[357472331,1744078260248,-590.76,0.00023835,2]
[357472332,1744078260258,-500.0,0.00023835,2]
[357472333,1744078260268,-500.0,0.00023835,2]